fUST/lending_fUST_20241102
["ID","MTS","AMOUNT","RATE_DAILY","PERIOD"]
[341176972,1730538646237,-622.02346882,0.00030373,5]
[341176973,1730538646247,-502.29566889,0.00030373,5]
[341176974,1730538646256,-500.0,0.00030373,5]
[341176975,1730538646267,-425.28638068,0.00033972,120]
[341176976,1730538728217,172.764446,0.00013973,2]
[341176982,1730539036810,4999.003,0.00033307,30]
[341176983,1730539244188,165.029374,0.00013973,2]
[341176987,1730539480588,-12315.0,0.000249,2]
[341176988,1730539480610,-300.0,0.00024999,2]
[341176989,1730539480633,-300.0,0.00024999,2]
[341176990,1730539480659,-241.5900589,0.00025705,2]
[341176991,1730539480685,-162.4126915,0.00026714,2]
[341176992,1730539480707,-159.059274,0.00026814,2]
[341176993,1730539480731,-163.0,0.00027,2]
[341176994,1730539480755,-420.0,0.00027082,2]
[341176995,1730539480778,-12374.9379756,0.00027204,2]
[341177003,1730539550160,-203.340024,0.00025643,2]
[341177004,1730539550186,-691.3279746,0.00026831,2]
[341177012,1730539571695,-2308.6720254,0.00026831,2]
[341177013,1730539571719,-165.0,0.00027,2]
[341177014,1730539571884,-168.14178888,0.00027181,2]
[341177015,1730539571907,-300.0,0.00027202,2]
[341177016,1730539571929,-300.0,0.00027202,2]
[341177017,1730539571953,-7555.04,0.00027203,2]
[341177018,1730539571976,-7388.14618572,0.00027204,2]
[341177021,1730539626089,-576.87170715,0.00027204,2]
[341177028,1730539644099,-273.17176437,0.00027204,2]
[341177035,1730539725832,399.72423577,0.00020377,2]
[341177036,1730539728651,24233.17038262,0.00022,2]
[341177037,1730539730765,397.57354782,0.00022,3]
[341177038,1730539754159,-1326.5044035,0.000223,2]
[341177039,1730539754181,-1307.1202297,0.000245,2]
[341177040,1730539754202,-220.0,0.00024999,2]
[341177041,1730539754226,-220.0,0.00024999,2]
[341177042,1730539754247,-670.69886951,0.00025,2]
[341177043,1730539754269,-108077.273307,0.00025,2]
[341177044,1730539754296,-2228.85767877,0.00025,2]
[341177046,1730539757152,-15689.26070501,0.00025,2]
[341177047,1730539757172,-428.34,0.00025,2]
[341177048,1730539757192,-2920.0,0.00025913,2]
[341177049,1730539757212,-527.27883075,0.00026,2]
[341177050,1730539757232,-164.7821569,0.00026573,2]
[341177051,1730539757254,-1116.6808122,0.00026791,2]
[341177052,1730539757276,-181.914695,0.0002688,2]
[341177053,1730539757298,-4286.87236716,0.00027204,2]
[341177054,1730539757322,-7555.04,0.00027281,2]
[341177055,1730539757344,-1683.1566505,0.00027281,2]
[341177056,1730539757366,-181.597447,0.00027462,2]
[341177057,1730539757387,-163.0,0.00027671,2]
[341177058,1730539757407,-159.059274,0.00027728,2]
[341177059,1730539757430,-181.597447,0.00027749,2]
[341177060,1730539757451,-693.453077,0.0002782,2]
[341177061,1730539757473,-181.597447,0.00028035,2]
[341177062,1730539757495,-181.597447,0.00028321,2]
[341177063,1730539757516,-693.453077,0.00028505,2]
[341177064,1730539757538,-181.597447,0.00028607,2]
[341177065,1730539757559,-159.059274,0.00028642,2]
[341177066,1730539757580,-888.55890403,0.00028664,2]
[341177067,1730539757602,-500.0,0.00028764,2]
[341177068,1730539757625,-500.0,0.00028764,2]
[341177069,1730539757650,-500.0,0.00028764,2]
[341177070,1730539757672,-500.0,0.00028764,2]
[341177071,1730539757692,-500.0,0.00028764,2]
[341177072,1730539757714,-500.0,0.00028764,2]
[341177073,1730539757734,-561.54966608,0.00028764,2]
[341177074,1730539757756,-500.0,0.00028764,2]
[341177075,1730539757778,-500.0,0.00028764,2]
[341177076,1730539757804,-500.0,0.00028764,2]
[341177077,1730539757827,-500.0,0.00028764,2]
[341177078,1730539757849,-500.0,0.00028764,2]
[341177079,1730539757872,-500.0,0.00028764,2]
[341177080,1730539757894,-500.0,0.00028764,2]
[341177081,1730539757916,-500.0,0.00028764,2]
[341177082,1730539757938,-500.0,0.00028764,2]
[341177083,1730539757959,-646.39568927,0.00028764,2]
[341177084,1730539757982,-500.0,0.00028764,2]
[341177085,1730539758006,-500.0,0.00028764,2]
[341177086,1730539758027,-500.0,0.00028764,2]
[341177087,1730539758049,-500.0,0.00028764,2]
[341177088,1730539758072,-500.0,0.00028764,2]
[341177089,1730539758101,-500.0,0.00028764,2]
[341177090,1730539758123,-500.0,0.00028764,2]
[341177091,1730539758145,-500.0,0.00028764,2]
[341177092,1730539758166,-500.0,0.00028764,2]
[341177093,1730539758188,-500.0,0.00028764,2]
[341177094,1730539758210,-520.80433334,0.00028764,2]
[341177095,1730539758232,-500.0,0.00028764,2]
[341177096,1730539758253,-500.0,0.00028764,2]
[341177097,1730539758274,-325.4546288,0.00028764,2]
[341177098,1730539758296,-500.0,0.00028764,2]
[341177099,1730539758319,-500.0,0.00028764,2]
[341177100,1730539758341,-500.0,0.00028764,2]
[341177101,1730539758362,-500.0,0.00028764,2]
[341177102,1730539758383,-500.0,0.00028764,2]
[341177103,1730539758404,-500.0,0.00028764,2]
[341177104,1730539758427,-500.0,0.00028764,2]
[341177105,1730539758448,-500.0,0.00028764,2]
[341177106,1730539758470,-500.0,0.00028764,2]
[341177107,1730539758492,-500.0,0.00028764,2]
[341177108,1730539758513,-500.0,0.00028764,2]
[341177109,1730539758534,-500.0,0.00028764,2]
[341177110,1730539758556,-580.57122441,0.00028764,2]
[341177111,1730539758577,-500.0,0.00028764,2]
[341177112,1730539758599,-500.0,0.00028764,2]
[341177113,1730539758620,-500.0,0.00028764,2]
[341177114,1730539758641,-500.0,0.00028764,2]
[341177115,1730539758663,-500.0,0.00028764,2]
[341177116,1730539758684,-558.97425187,0.00028765,2]
[341177117,1730539758706,-3648.56522054,0.00028765,2]
[341177118,1730539760099,-564.93,0.0002401,30]
[341177119,1730539760124,-3906.47477946,0.00028765,2]
[341177120,1730539760145,-163.0,0.00028767,2]
[341177121,1730539760167,-693.453077,0.0002919,2]
[341177122,1730539760188,-159.059274,0.00029555,2]
[341177123,1730539760318,164.691623,0.00028529,2]
[341177124,1730539760400,164.691623,0.00029024,2]
[341177125,1730539760806,164.691623,0.0002952,2]
[341177126,1730539771167,6610.66,0.00028764,2]
[341177127,1730539771475,6610.66,0.00028764,2]
[341177128,1730539808942,159.059274,0.00028297,2]
[341177129,1730539823434,150.0,0.00024658,2]
[341177130,1730539829393,3934.44807,0.0002881,2]
[341177131,1730539829419,19318.19775794,0.0002881,2]
[341177171,1730539838643,-1647.35417206,0.0002881,2]
[341177172,1730539838653,-500.0,0.00029766,5]
[341177173,1730539838663,-212.80263385,0.000299,2]
[341177174,1730539838672,-587.45319523,0.000299,2]
[341177175,1730539838681,-151.0,0.0003,120]
[341177176,1730539838696,-2791.82433607,0.0003,2]
[341177177,1730539838707,-157.46886157,0.0003,15]
[341177178,1730539838716,-164.691623,0.00030015,2]
[341177179,1730539838726,-752.2044081,0.00030036,2]
[341177180,1730539838735,-6610.66,0.00030134,2]
[341177181,1730539838746,-4404.17311547,0.00030135,2]
[341177182,1730539838758,-1411.39577911,0.00030135,2]
[341177183,1730539838770,-795.09110542,0.00030135,2]
[341177184,1730539838779,-451.28329623,0.00030135,2]
[341177185,1730539838789,-502.31159259,0.00030135,2]
[341177186,1730539838798,-508.95235827,0.00030135,2]
[341177187,1730539838808,-500.0,0.00030135,2]
[341177188,1730539838817,-536.16162542,0.00030135,2]
[341177189,1730539838827,-238.48840992,0.00030135,2]
[341177190,1730539838836,-372.64950125,0.00030136,7]
[341177191,1730539838847,-394.43314306,0.00030136,4]
[341177195,1730539840606,-119.29522932,0.00030136,4]
[341177196,1730539840615,-539.04272119,0.00030136,4]
[341177197,1730539840624,-499.65293041,0.00030136,4]
[341177198,1730539840640,-0.34706959,0.00030136,4]
[341177199,1730539840651,-514.70629,0.00030136,4]
[341177200,1730539840661,-500.0,0.00030136,4]
[341177201,1730539840671,-514.55562065,0.00030136,2]
[341177202,1730539840681,-500.0,0.00030136,4]
[341177203,1730539840691,-514.04773595,0.00030136,4]
[341177204,1730539840700,-500.0,0.00030136,4]
[341177205,1730539840710,-513.12577733,0.00030136,4]
[341177206,1730539840719,-514.47352979,0.00030136,4]
[341177207,1730539840728,-269.41075372,0.00030136,4]
[341177208,1730539840737,-500.0,0.00030136,4]
[341177209,1730539840746,-500.0,0.00030136,4]
[341177210,1730539840755,-500.0,0.00030136,4]
[341177211,1730539840765,-503.20294273,0.00030136,4]
[341177212,1730539840775,-350.48068062,0.00030136,4]
[341177213,1730539840786,-509.17813154,0.00030136,4]
[341177214,1730539840796,-500.0,0.00030136,4]
[341177215,1730539840805,-500.0,0.00030136,4]
[341177216,1730539840815,-500.0,0.00030136,4]
[341177217,1730539840824,-506.33631443,0.00030136,4]
[341177218,1730539840833,-500.0,0.00030136,4]
[341177219,1730539840843,-541.97627779,0.00030136,4]
[341177220,1730539840853,-500.0,0.00030136,4]
[341177221,1730539840861,-500.0,0.00030136,4]
[341177222,1730539840871,-500.0,0.00030136,4]
[341177223,1730539840880,-500.0,0.00030136,4]
[341177224,1730539840889,-500.0,0.00030136,4]
[341177225,1730539840898,-532.02051023,0.00030136,4]
[341177226,1730539840908,-500.0,0.00030136,4]
[341177227,1730539840918,-500.0,0.00030136,4]
[341177228,1730539840927,-557.26244808,0.00030136,4]
[341177229,1730539840936,-500.0,0.00030136,4]
[341177230,1730539840946,-500.0,0.00030136,4]
[341177231,1730539840955,-500.0,0.00030136,4]
[341177232,1730539840964,-512.37576811,0.00030136,4]
[341177233,1730539840973,-500.0,0.00030136,4]
[341177234,1730539840982,-527.43039367,0.00030136,4]
[341177235,1730539840991,-500.0,0.00030136,4]
[341177236,1730539841000,-514.09402128,0.00030136,4]
[341177237,1730539841010,-500.0,0.00030136,4]
[341177238,1730539841019,-467.73000206,0.00030136,4]
[341177239,1730539841029,-500.0,0.00030136,4]
[341177240,1730539841038,-500.0,0.00030136,3]
[341177241,1730539841047,-536.78305837,0.00030136,4]
[341177242,1730539841057,-500.0,0.00030136,4]
[341177243,1730539841067,-500.0,0.00030136,4]
[341177244,1730539841076,-500.0,0.00030136,4]
[341177245,1730539841085,-500.0,0.00030136,4]
[341177246,1730539841094,-500.0,0.00030136,4]
[341177247,1730539841103,-531.81985418,0.00030136,4]
[341177248,1730539841113,-500.0,0.00030136,4]
[341177249,1730539841122,-500.0,0.00030136,4]
[341177250,1730539841132,-167.0,0.00030205,2]
[341177251,1730539841141,-6610.66,0.00030409,2]
[341177252,1730539841150,-326.65449196,0.0003041,4]
[341177253,1730539841160,-283.24869372,0.0003041,4]
[341177254,1730539841174,-530.22863922,0.0003041,4]
[341177255,1730539841183,-500.0,0.0003041,4]
[341177256,1730539841192,-500.0,0.0003041,4]
[341177257,1730539841201,-500.0,0.0003041,4]
[341177258,1730539841212,-500.0,0.0003041,4]
[341177259,1730539841221,-500.0,0.0003041,4]
[341177260,1730539841232,-491.24005292,0.0003041,4]
[341177261,1730539841242,-500.0,0.0003041,4]
[341177262,1730539841251,-500.0,0.0003041,4]
[341177263,1730539841261,-500.0,0.0003041,4]
[341177264,1730539841270,-500.0,0.0003041,4]
[341177265,1730539841279,-500.0,0.0003041,4]
[341177266,1730539841288,-415.98721411,0.0003041,4]
[341177267,1730539841297,-517.56444458,0.0003041,4]
[341177268,1730539841307,-500.0,0.0003041,4]
[341177269,1730539841317,-500.0,0.0003041,4]
[341177270,1730539841327,-500.0,0.0003041,4]
[341177271,1730539841337,-500.0,0.0003041,3]
[341177272,1730539841347,-500.0,0.0003041,4]
[341177273,1730539841356,-500.0,0.0003041,4]
[341177274,1730539841365,-500.0,0.0003041,4]
[341177275,1730539841373,-500.0,0.0003041,4]
[341177276,1730539841383,-500.0,0.0003041,4]
[341177277,1730539841391,-500.0,0.0003055,2]
[341177278,1730539841401,-500.0,0.0003055,2]
[341177279,1730539841411,-169.53519007,0.00030684,4]
[341177280,1730539841422,-197.59097997,0.00030684,4]
[341177281,1730539841431,-535.0681738,0.00030684,4]
[341177282,1730539841442,-500.0,0.00030684,4]
[341177283,1730539841453,-500.0,0.00030684,4]
[341177284,1730539841461,-500.0,0.00030684,3]
[341177285,1730539841470,-500.0,0.00030684,4]
[341177286,1730539841479,-500.0,0.00030684,4]
[341177287,1730539841489,-500.0,0.00030684,4]
[341177288,1730539841499,-500.0,0.00030684,4]
[341177289,1730539841508,-803.08257338,0.00030852,3]
[341177290,1730539841519,-198.838788,0.00030943,2]
[341177291,1730539841529,-500.0,0.00030958,4]
[341177292,1730539841538,-500.0,0.00030958,3]
[341177293,1730539841548,-500.0,0.00030958,4]
[341177294,1730539841559,-500.0,0.00030958,4]
[341177295,1730539841570,-500.0,0.00030958,4]
[341177296,1730539841581,-500.0,0.00031,5]
[341177297,1730539841591,-1000.0,0.00031136,5]
[341177298,1730539841600,-752.20440807,0.00031145,2]
[341177299,1730539841609,-6610.66,0.00031231,2]
[341177300,1730539841618,-610.59019714,0.00031232,4]
[341177301,1730539841627,-500.0,0.00031232,3]
[341177302,1730539841637,-500.0,0.00031232,4]
[341177303,1730539841648,-271.72573112,0.00031232,4]
[341177304,1730539841657,-500.0,0.00031266,4]
[341177305,1730539841667,-505.16198337,0.00031266,4]
[341177306,1730539841677,-500.0,0.00031266,4]
[341177307,1730539841687,-500.0,0.00031266,4]
[341177308,1730539841696,-151.0,0.00031397,120]
[341177309,1730539841705,-6610.66,0.00031505,2]
[341177310,1730539841715,-500.0,0.00031506,3]
[341177311,1730539841725,-500.0,0.00031506,4]
[341177312,1730539841734,-368.543112,0.0003154,4]
[341177313,1730539841744,-500.0,0.0003154,4]
[341177314,1730539841754,-161.629946,0.00031756,2]
[341177315,1730539841764,-151.317336,0.00031756,2]
[341177316,1730539841773,-180.261884,0.00031756,2]
[341177317,1730539841782,-500.0,0.0003178,3]
[341177318,1730539841792,-500.0,0.0003178,4]
[341177319,1730539841804,-1000.0,0.0003192,2]
[341177320,1730539841814,-187.32735523,0.0003192,2]
[341177321,1730539841823,-500.0,0.00032054,3]
[341177322,1730539841833,-199.02,0.00032054,4]
[341177323,1730539841842,-151.317336,0.00032153,2]
[341177324,1730539841851,-163.0,0.00032219,2]
[341177325,1730539841861,-752.20440807,0.00032254,2]
[341177326,1730539841870,-500.0,0.00032328,3]
[341177327,1730539841879,-150.0,0.00032355,2]
[341177328,1730539841888,-180.261884,0.0003255,2]
[341177329,1730539841897,-151.317336,0.0003255,2]
[341177330,1730539841906,-500.0,0.00032602,3]
[341177331,1730539841916,-288.818764,0.00032775,2]
[341177332,1730539841931,-151.0,0.00032795,120]
[341177333,1730539841940,-280.13402147,0.00032876,3]
[341177334,1730539841950,-164.423443,0.00032877,120]
[341177335,1730539841959,-151.317336,0.00032947,2]
[341177336,1730539841969,-3438.4711476,0.000332,7]
[341177337,1730539841978,-150.0,0.000332,15]
[341177338,1730539841989,-926.76068669,0.0003327,2]
[341177339,1730539841998,-180.261884,0.00033344,2]
[341177340,1730539842007,-151.317336,0.00033344,2]
[341177341,1730539842017,-752.20440807,0.00033363,2]
[341177342,1730539842028,-1500.0,0.0003364,5]
[341177343,1730539842038,-6610.66,0.00033899,120]
[341177344,1730539842048,-500.0,0.000339,7]
[341177345,1730539842058,-530.51760798,0.000339,120]
[341177346,1730539842067,-500.0,0.00033971,7]
[341177347,1730539842077,-355.00983064,0.00033971,7]
[341177348,1730539842086,-288.14594416,0.00033971,7]
[341177349,1730539842095,-5776.88,0.00033972,120]
[341177350,1730539842104,-151.0,0.00034192,120]
[341177351,1730539842113,-435.437286,0.00034192,2]
[341177352,1730539842122,-153.0,0.00034192,2]
[341177353,1730539842132,-213.2148856,0.00034192,2]
[341177354,1730539842141,-303.0898104,0.00034192,2]
[341177355,1730539842151,-153.0,0.00034192,2]
[341177356,1730539842161,-153.0,0.00034192,2]
[341177357,1730539842173,-303.0898104,0.00034192,2]
[341177358,1730539842183,-153.0,0.00034192,2]
[341177359,1730539842192,-153.0,0.00034192,2]
[341177360,1730539842203,-163.0,0.00034233,2]
[341177361,1730539842215,-1200.0,0.00034251,7]
[341177362,1730539842225,-8900.5683136,0.00034308,2]
[341177363,1730539842236,-1000.0,0.0003445,2]
[341177364,1730539842246,-309.1257563,0.00034466,2]
[341177365,1730539842256,-752.20440807,0.00034472,2]
[341177366,1730539842266,-525.0,0.000345,2]
[341177367,1730539842278,-1150.9,0.000345,2]
[341177368,1730539842288,-163.0,0.00034521,2]
[341177369,1730539842297,-5693.32328204,0.00034545,12]
[341177370,1730539842306,-6610.66,0.00034546,120]
[341177371,1730539842318,-6610.66,0.00034547,120]
[341177372,1730539842402,-151.0,0.00034548,2]
[341177373,1730539842412,-6610.66,0.00034548,120]
[341177374,1730539842423,-6610.66,0.00034549,120]
[341177375,1730539842432,-6610.66,0.00034549,120]
[341177376,1730539842443,-6610.66,0.00034549,120]
[341177377,1730539842452,-177.80655556,0.0003455,2]
[341177378,1730539842463,-151.0,0.0003455,2]
[341177379,1730539842472,-6610.66,0.0003455,120]
[341177380,1730539842481,-6610.66,0.0003455,120]
[341177381,1730539842491,-6610.66,0.0003455,120]
[341177382,1730539842500,-6610.66,0.0003455,120]
[341177383,1730539842509,-6610.66,0.0003455,120]
[341177384,1730539842518,-6610.66,0.0003455,120]
[341177385,1730539842527,-6610.66,0.0003455,120]
[341177386,1730539842537,-6610.66,0.0003455,120]
[341177387,1730539842546,-2048.87869263,0.0003455,120]
[341177391,1730539843433,-108.22084237,0.00034192,2]
[341177404,1730539846314,-43.32406283,0.00034192,2]
[341177405,1730539846325,-4561.78130737,0.0003455,120]
[341177406,1730539846336,-237.7936298,0.0003455,120]
[341177409,1730539871103,170.49651,0.00013973,2]
[341177410,1730539893829,300.0,0.00024658,2]
[341177412,1730540416790,173.257014,0.00013973,2]
[341177414,1730540729161,659.53028538,0.00033307,120]
[341177415,1730540735301,-430.63749815,0.00025688,2]
[341177416,1730540759102,-5474.28437665,0.00025688,2]
[341177417,1730540845540,447.27,0.0002401,120]
[341177418,1730540848108,-166.666666,0.000252,2]
[341177419,1730540848130,-34.55999087,0.00025609,2]
[341177420,1730540854146,-17778.57805546,0.00025609,2]
[341177421,1730540927629,170.49651,0.00013973,2]
[341177423,1730540959131,-168.14178888,0.00025555,2]
[341177424,1730540959266,-455.9913128,0.00025559,2]
[341177425,1730540959289,-7086.86195367,0.00025609,2]
[341177426,1730540959310,-537.076654,0.00025655,2]
[341177427,1730540959331,-435.0126593,0.00025688,2]
[341177428,1730540959352,-222.369877,0.00025693,2]
[341177429,1730540959373,-592.313686,0.00025701,2]
[341177430,1730540959393,-203.340024,0.00025709,2]
[341177431,1730540959413,-300.0,0.00025842,2]
[341177432,1730540959434,-300.0,0.00025843,2]
[341177433,1730540959454,-3000.0,0.00025845,2]
[341177434,1730540959474,-250.0,0.00025881,2]
[341177435,1730540959496,-166.666666,0.00025887,2]
[341177436,1730540959516,-251.1934515,0.0002597,2]
[341177437,1730540959536,-582.4273589,0.00026022,2]
[341177438,1730540959555,-816.056609,0.00026078,2]
[341177439,1730540959577,-222.764488,0.00026564,2]
[341177440,1730540959597,-166.666666,0.00026574,2]
[341177441,1730540959618,-222.764488,0.00026636,2]
[341177442,1730540959642,-222.764488,0.00026708,2]
[341177443,1730540959663,-222.764488,0.00026779,2]
[341177444,1730540959686,-222.764488,0.00026851,2]
[341177445,1730540959708,-222.764488,0.00026923,2]
[341177446,1730540959733,-222.764488,0.00026995,2]
[341177447,1730540959757,-222.764488,0.00027067,2]
[341177448,1730540959781,-222.764488,0.00027139,2]
[341177449,1730540959803,-222.764488,0.00027211,2]
[341177450,1730540959825,-166.666666,0.00027261,2]
[341177451,1730540959846,-222.764488,0.00027283,2]
[341177452,1730540959866,-222.764488,0.00027354,2]
[341177453,1730540959889,-222.764488,0.00027426,2]
[341177454,1730540959911,-222.764488,0.00027498,2]
[341177455,1730540959933,-5000.0,0.00027548,2]
[341177456,1730540959960,-222.764488,0.0002757,2]
[341177457,1730540959980,-508.020451,0.00027589,2]
[341177458,1730540960003,-166.666666,0.00027948,2]
[341177459,1730540960023,-420.0,0.00027971,2]
[341177460,1730540960046,-500.0,0.00027978,2]
[341177461,1730540960067,-172.26195954,0.00027978,2]
[341177462,1730540960088,-500.0,0.00027978,2]
[341177463,1730540960109,-500.0,0.00027978,2]
[341177464,1730540960130,-500.0,0.00027978,2]
[341177465,1730540960150,-462.01325008,0.00027978,2]
[341177466,1730540960172,-500.0,0.00027978,2]
[341177467,1730540960193,-500.0,0.00027978,2]
[341177468,1730540960214,-500.0,0.00027978,2]
[341177469,1730540960235,-500.0,0.00027978,2]
[341177470,1730540960256,-500.0,0.00027978,2]
[341177471,1730540960276,-544.23400178,0.00027978,2]
[341177472,1730540960298,-500.0,0.00027978,2]
[341177473,1730540960318,-167.30756042,0.00027978,2]
[341177474,1730540960338,-500.0,0.00027978,2]
[341177475,1730540960359,-500.0,0.00027978,2]
[341177476,1730540960380,-500.0,0.00027978,2]
[341177477,1730540960402,-402.87300378,0.00027978,2]
[341177478,1730540960429,-500.0,0.00027978,2]
[341177479,1730540960456,-500.0,0.00027978,2]
[341177480,1730540960482,-500.0,0.00027978,2]
[341177481,1730540960508,-500.0,0.00027978,2]
[341177482,1730540960535,-500.0,0.00027978,2]
[341177483,1730540960562,-500.0,0.00027978,2]
[341177484,1730540960587,-500.0,0.00027978,2]
[341177485,1730540960614,-500.0,0.00027978,2]
[341177486,1730540960640,-500.0,0.00027978,2]
[341177487,1730540960666,-500.0,0.00027978,2]
[341177488,1730540960690,-500.0,0.00027978,2]
[341177489,1730540960718,-500.0,0.00027978,2]
[341177490,1730540960748,-500.0,0.00027978,2]
[341177491,1730540960773,-500.0,0.00027978,2]
[341177492,1730540960798,-500.0,0.00027978,2]
[341177493,1730540960823,-600.0,0.00027978,2]
[341177494,1730540960849,-500.0,0.00027978,2]
[341177495,1730540960876,-500.0,0.00027978,2]
[341177496,1730540960901,-500.0,0.00027978,2]
[341177497,1730540960928,-500.0,0.00027978,2]
[341177498,1730540960954,-500.0,0.00027978,2]
[341177499,1730540960979,-500.0,0.00027978,2]
[341177500,1730540961003,-500.0,0.00027978,2]
[341177501,1730540961027,-335.00000001,0.00027978,2]
[341177502,1730540961056,-500.0,0.00027978,2]
[341177503,1730540961079,-500.0,0.00027978,2]
[341177504,1730540961120,-500.0,0.00027978,2]
[341177505,1730540961148,-500.0,0.00027978,2]
[341177506,1730540961176,-565.0,0.00027978,2]
[341177507,1730540961201,-500.0,0.00027978,2]
[341177508,1730540961226,-500.0,0.00027978,2]
[341177509,1730540961252,-500.0,0.00027978,2]
[341177510,1730540961277,-500.0,0.00027978,2]
[341177511,1730540961303,-500.0,0.00027978,2]
[341177512,1730540961329,-500.0,0.00027978,2]
[341177513,1730540961352,-500.0,0.00027978,2]
[341177514,1730540961375,-500.0,0.00027978,2]
[341177515,1730540961399,-500.0,0.00027978,2]
[341177516,1730540961424,-5000.0,0.0002798,2]
[341177517,1730540961449,-304.5834619,0.00027981,2]
[341177518,1730540962525,162.010536,0.00026587,2]
[341177519,1730540962940,116.5341673,0.00026725,2]
[341177520,1730540962964,45.4763687,0.00026725,2]
[341177521,1730540971097,-162.010536,0.00026864,2]
[341177522,1730540971118,-162.010536,0.00027002,2]
[341177523,1730540971141,-162.010536,0.00027141,2]
[341177524,1730540971162,-162.010536,0.0002728,2]
[341177525,1730540971182,-508.020451,0.00028274,2]
[341177526,1730540971203,-195.0010046,0.00028417,2]
[341177527,1730540971223,-420.0,0.00028427,2]
[341177528,1730540971244,-1976.08511857,0.00028595,2]
[341177529,1730540971265,-3048.2357086,0.00028597,2]
[341177530,1730540971286,-166.666666,0.00028635,2]
[341177531,1730540971305,-508.020451,0.00028959,2]
[341177532,1730540971325,-300.5,0.00029,2]
[341177533,1730540971346,-173.257014,0.00029349,2]
[341177534,1730540971366,-283.3692159,0.000296,2]
[341177535,1730540971385,-283.36921588,0.000296,2]
[341177536,1730540971405,-283.36921588,0.000296,2]
[341177537,1730540971425,-194.30203911,0.00029666,2]
[341177538,1730540971446,-151.0,0.0003,120]
[341177539,1730540971466,-201.70216091,0.00030135,2]
[341177540,1730540971486,-248.50688145,0.00030135,2]
[341177541,1730540971508,-509.07215725,0.00030136,4]
[341177542,1730540971528,-592.10915506,0.00030136,4]
[341177543,1730540971549,-510.01434787,0.00030136,4]
[341177544,1730540971572,-505.00722409,0.00030136,4]
[341177545,1730540971592,-506.963845,0.00030136,4]
[341177546,1730540971612,-507.72890069,0.00030136,4]
[341177547,1730540971634,-510.71451716,0.00030136,4]
[341177548,1730540971656,-508.9499792,0.00030136,4]
[341177549,1730540971683,-524.40405516,0.00030136,2]
[341177550,1730540971704,-507.89734265,0.00030136,4]
[341177551,1730540971727,-613.4690976,0.00030136,4]
[341177552,1730540971749,-505.47015516,0.00030136,4]
[341177553,1730540971770,-500.0,0.00030136,4]
[341177554,1730540971790,-540.13846499,0.00030136,4]
[341177555,1730540971812,-511.68272845,0.00030136,4]
[341177556,1730540971833,-199.13016349,0.00030136,4]
[341177557,1730540971855,-513.39285102,0.00030136,4]
[341177558,1730540971879,-415.80642851,0.00030136,4]
[341177559,1730540971899,-536.19775775,0.00030136,4]
[341177560,1730540971920,-508.97520643,0.00030136,4]
[341177561,1730540971943,-519.19331589,0.00030136,4]
[341177562,1730540971966,-512.72073326,0.00030136,4]
[341177563,1730540971986,-505.95168559,0.00030136,4]
[341177564,1730540972009,-511.7899279,0.00030136,4]
[341177565,1730540972030,-503.90556095,0.00030136,4]
[341177566,1730540972055,-509.53901461,0.00030136,4]
[341177567,1730540972077,-548.07799858,0.00030136,4]
[341177568,1730540972098,-517.41197981,0.00030136,4]
[341177569,1730540972122,-510.25365357,0.00030136,4]
[341177570,1730540972146,-500.0,0.00030136,4]